Workbook

Sheet Лист1
A1: Школа | F1: Утвердил: | G1: должность
A2: Типовое примерное меню приготавливаемых блюд | G2: фамилия
A3: Возрастная категория | E3: от 7 до 11 лет | G3: дата | H3: 03.03.2025
A5: Неделя | B5: День недели | C5: Прием пищи | D5: Раздел меню | E5: Блюда | F5: Вес блюда, г | G5: Белки | H5: Жиры | I5: Углеводы | J5: Калорийность | K5: № рецептуры | L5: Цена
A6: 1 | B6: 1 | C6: Завтрак | D6: закуска | E6: Огурец в нарезке | F6: 60 | G6: 0.48 | H6: 0.06 | I6: 1.5 | J6: 8.4 | K6: 54 | L6: 13.05
D7: гор. блюдо | E7: Макаронные изделия отварные. Котлеты п/ф с томатным соусом | F7: 260 | G7: 16 | H7: 15 | I7: 48 | J7: 406 | K7: 197; 1 | L7: 50.75
D8: гор. напиток | E8: Чай с лимоном | F8: 200 | G8: 0.14 | H8: 0.03 | I8: 10.22 | J8: 43 | K8: 273 | L8: 3.10
D9: хлеб бел. | E9: Хлеб пшеничный, масло (порциями) | F9: 40 | G9: 3 | H9: 8 | I9: 15 | J9: 139 | K9: 1; 7 | L9: 9.70
D10: хлеб чер. | E10: Хлеб ржано-пшеничный | F10: 20 | G10: 1.32 | H10: 0.24 | I10: 7.93 | J10: 40 | K10: 2 | L10: 1.30
D13: итого | F13: =SUM(F6:F12) -> 580 | G13: =SUM(G6:G12) -> 20 | H13: 22 | I13: 82 | J13: 636 | L13: =SUM(L6:L12) -> 77.9
A14: =A6 -> 1 | B14: =B6 -> 1 | C14: Обед | D14: закуска | E14: Салат из свеклы с растительным маслом | F14: 60 | G14: 0.99 | H14: 5 | I14: 5.94 | J14: 72 | K14: 24 | L14: 7.40
D15: 1 блюдо | E15: Суп картофельный с горохом | F15: 250 | G15: 6.1 | H15: 4.2 | I15: 18.4 | J15: 130.87 | K15: 42 | L15: 13.09
D16: 2 блюдо | E16: Птица, тушеная в соусе с овощами | F16: 180 | G16: 16.1 | H16: 18 | I16: 19.57 | J16: 301 | K16: 261 | L16: 47.14
D17: гарнир
D18: сладкое | E18: Компот из смеси сухофруктов | F18: 200 | G18: 0.78 | H18: 0.06 | I18: 30.1 | J18: 125.5 | K18: 707 | L18: 8.20
D19: хлеб бел. | E19: Хлеб пшеничный | F19: 30 | G19: 2.43 | H19: 0.3 | I19: 14.64 | J19: 72.6 | K19: 1 | L19: 1.95
D20: хлеб чер. | E20: Хлеб ржано-пшеничный | F20: 30 | G20: 1.98 | H20: 0.36 | I20: 11.89 | J20: 59.4 | K20: 2 | L20: 1.95
D23: итого | F23: =SUM(F14:F22) -> 750 | G23: =SUM(G14:G22) -> 28 | H23: 28 | I23: 101 | J23: 761 | L23: =SUM(L14:L22) -> 79.73
A24: =A6 -> 1 | B24: =B6 -> 1 | C24: Итого за день: | F24: =F13+F23 -> 1330 | G24: =G13+G23 -> 49 | H24: 50 | I24: 183 | J24: 1397 | L24: 149.07
A25: 1 | B25: 2 | C25: Завтрак | D25: гор. блюдо | E25: Каша рисовая молочная вязкая | F25: 185 | G25: 5.21 | H25: 6.95 | I25: 37.92 | J25: 233.84 | K25: 186 | L25: 24.24
D26: гор. напиток | E26: Какао на молоке | F26: 200 | G26: 9.2 | H26: 7.1 | I26: 11.03 | J26: 148.46 | K26: 266 | L26: 20.55
D27: хлеб чер. | E27: Хлеб ржано-пшеничный | F27: 20 | G27: 1.32 | H27: 0.24 | I27: 7.93 | J27: 40 | K27: 2 | L27: 1.30
D28: хлеб бел. | E28: Хлеб пшеничный, сыр (порциями) | F28: 40 | G28: 5 | H28: 3.25 | I28: 17 | J28: 109 | K28: 1; 9 | L28: 9.90
D29: фрукты | E29: Яблоко | F29: 100 | G29: 0.4 | H29: 0.4 | I29: 9.8 | J29: 47 | K29: 588 | L29: 13.90
D32: итого | F32: =SUM(F25:F31) -> 545 | G32: =SUM(G25:G31) -> 21 | H32: 18 | I32: 84 | J32: 578 | L32: =SUM(L25:L31) -> 69.89
A33: =A25 -> 1 | B33: =B25 -> 2 | C33: Обед | D33: закуска | E33: Салат "Степной" | F33: 100 | G33: 1.67 | H33: 3.5 | I33: 6.67 | J33: 65 | K33: 25.06 | L33: 7.10
D34: 1 блюдо | E34: Рассольник ленинградский | F34: 250 | G34: 2.68 | H34: 6.17 | I34: 13.8 | J34: 121 | K34: 56 | L34: 10.57
D35: 2 блюдо | E35: Рыба, запеченная с картофелем | F35: 200 | G35: 11.64 | H35: 12.28 | I35: 30.28 | J35: 279 | K35: 81 | L35: 42.94
D36: гарнир
D37: сладкое | E37: Компот из смеси сухофруктов | F37: 200 | G37: 0.78 | H37: 0.06 | I37: 30.1 | J37: 125 | K37: 707 | L37: 8.20
D38: хлеб бел. | E38: Хлеб пшеничный | F38: 30 | G38: 2.43 | H38: 0.3 | I38: 14.64 | J38: 73 | K38: 1 | L38: 1.95
D39: кондитерское | E39: Печенье | F39: 30 | G39: 2.2 | H39: 3 | I39: 22.4 | J39: 122 | K39: 20 | L39: 7.02
D40: хлеб чер. | E40: Хлеб ржано-пшеничный | F40: 30 | G40: 1.98 | H40: 0.36 | I40: 11.89 | J40: 59.4 | K40: 2 | L40: 1.95
D43: итого | F43: =SUM(F33:F42) -> 840 | G43: =SUM(G33:G42) -> 23.38 | H43: =SUM(H33:H42) -> 25.67 | I43: 129.78 | J43: 843.91 | L43: =SUM(L33:L42) -> 79.73
A44: =A25 -> 1 | B44: =B25 -> 2 | C44: Итого за день: | F44: =F32+F43 -> 1385 | G44: =G32+G43 -> 44 | H44: 44 | I44: 213 | J44: 1422 | L44: =L32+L43 -> 149.62
A45: 1 | B45: 3 | C45: Завтрак | D45: гор. блюдо | E45: Суп молочный с макаронными изделиями | F45: 250 | G45: 6.9 | H45: 5.2 | I45: 19.9 | J45: 150 | K45: 78 | L45: 25.37
D46: булочное | E46: Булочка домашняя | F46: 100 | G46: 6.9 | H46: 10.4 | I46: 50.4 | J46: 328 | K46: 290 | L46: 24.60
D47: гор. напиток | E47: Чай с сахаром | F47: 200 | G47: 0.08 | H47: 0.02 | I47: 10.01 | J47: 41 | K47: 271 | L47: 2.30
D48: хлеб чер. | E48: Хлеб ржано-пшеничный | F48: 20 | G48: 1.32 | H48: 0.24 | I48: 7.93 | J48: 40 | K48: 2 | L48: 1.30
D49: фрукты | E49: Банан | F49: 130 | G49: 2 | H49: 0.7 | I49: 27.3 | J49: 125 | K49: 587 | L49: 17.52
D52: итого | F52: =SUM(F45:F49) -> 700 | G52: 18 | H52: =SUM(H45:H49) -> 17 | I52: 97 | J52: 684 | L52: =SUM(L45:L49) -> 71.09
A53: =A45 -> 1 | B53: =B45 -> 3 | C53: Обед | D53: закуска | E53: Винегрет овощной | F53: 60 | G53: 0.82 | H53: 3.71 | I53: 5.06 | J53: 56.8 | K53: 45 | L53: 6.22
D54: 1 блюдо | E54: Суп крестьянский с рисом со сметаной | F54: 250 | G54: 2.2 | H54: 6.2 | I54: 14.6 | J54: 123.7 | K54: 98 | L54: 11.91
D55: 2 блюдо | E55: Тефтели п/ф с томатным соусом | F55: 110 | G55: 10.5 | H55: 10.5 | I55: 9.7 | J55: 191 | K55: 2 | L55: 39.77
D56: гарнир | E56: Пюре гороховое | F56: 150 | G56: 15.7 | H56: 4.71 | I56: 32.7 | J56: 237 | K56: 163 | L56: 8.51
D57: сладкое | E57: Компот из свежих плодов или ягод | F57: 200 | G57: 0.16 | H57: 0 | I57: 14.99 | J57: 60.64 | K57: 282 | L57: 9.42
D58: хлеб бел. | E58: Хлеб пшеничный | F58: 30 | G58: 2.43 | H58: 0.3 | I58: 14.64 | J58: 72.6 | K58: 1 | L58: 1.95
D59: хлеб чер. | E59: Хлеб ржано-пшеничный | F59: 30 | G59: 1.98 | H59: 0.36 | I59: 11.89 | J59: 59.4 | K59: 2 | L59: 1.95
D62: итого | F62: =SUM(F53:F61) -> 830 | G62: =SUM(G53:G61) -> 34 | H62: 26 | I62: 104 | J62: 801 | L62: =SUM(L53:L61) -> 79.73
A63: =A45 -> 1 | B63: =B45 -> 3 | C63: Итого за день: | F63: =F52+F62 -> 1530 | G63: =G52+G62 -> 52 | H63: 42 | I63: 201 | J63: 1485 | L63: =L52+L62 -> 150.82
A64: 1 | B64: 4 | C64: Завтрак | D64: закуска | E64: Помидоры в нарезке | F64: 60 | G64: 0.66 | H64: 0.12 | I64: 2.28 | J64: 14.4 | K64: 54 | L64: 13.20
D65: горячее блюдо | E65: Каша гречневая рассыпчатая. Тефтели п/ф с томатным соусом | F65: 280 | G65: 20.37 | H65: 16.7 | I65: 54.3 | J65: 234 | K65: 330; 2 | L65: 46.20
D66: гор. напиток | E66: Напиток яблочно-лимонный | F66: 200 | G66: 0.26 | H66: 0.21 | I66: 25.07 | J66: 105 | K66: 313 | L66: 5.70
D67: хлеб бел. | E67: Хлеб пшеничный, сыр (порциями) | F67: 40 | G67: 4.75 | H67: 3.25 | I67: 14.64 | J67: 109 | K67: 1; 9 | L67: 9.90
D68: хлеб чер. | E68: Хлеб ржано-пшеничный | F68: 20 | G68: 1.32 | H68: 0.24 | I68: 7.93 | J68: 40 | K68: 2 | L68: 1.30
D71: итого | F71: =SUM(F64:F70) -> 600 | G71: =SUM(G64:G70) -> 27 | H71: =SUM(H64:H70) -> 21 | I71: =SUM(I64:I70) -> 104 | J71: =SUM(J64:J70) -> 503 | L71: =SUM(L64:L70) -> 76.30
A72: =A64 -> 1 | B72: =B64 -> 4 | C72: Обед | D72: закуска | E72: Салат из свежих огурцов | F72: 60 | G72: 0.46 | H72: 3.65 | I72: 1.43 | J72: 40.38 | K72: 13 | L72: 11.90
D73: 1 блюдо | E73: Суп картофельный с макаронными изделиями | F73: 250 | G73: 5.5 | H73: 5 | I73: 20 | J73: 149 | K73: 61 | L73: 8.20
D74: 2 блюдо | E74: Жаркое по домашнему (из мяса птицы) | F74: 200 | G74: 11.43 | H74: 14.4 | I74: 23.66 | J74: 270 | K74: 32 | L74: 36.21
D75: гарнир
D76: сладкое | E76: Напиток "Витошка" витаминный | F76: 200 | G76: 0 | H76: 0 | I76: 15.8 | J76: 60 | K76: 287 | L76: 10.00
D77: хлеб бел. | E77: Хлеб пшеничный | F77: 30 | G77: 2.43 | H77: 0.3 | I77: 14.64 | J77: 72.6 | K77: 1 | L77: 1.95
D78: хлеб чер. | E78: Хлеб ржано-пшеничный | F78: 30 | G78: 1.98 | H78: 0.36 | I78: 11.89 | J78: 59.4 | K78: 2 | L78: 1.95
D79: фрукты | E79: Банан | F79: 130 | G79: 2 | H79: 0.7 | I79: 27.3 | J79: 125 | K79: 587 | L79: 17.52
D82: итого | F82: =SUM(F72:F81) -> 900 | G82: =SUM(G72:G81) -> 24 | H82: 24 | I82: 115 | J82: 776 | L82: =SUM(L72:L81) -> 87.73
A83: =A64 -> 1 | B83: =B64 -> 4 | C83: Итого за день: | F83: =F71+F82 -> 1500 | G83: =G71+G82 -> 51 | H83: 44 | I83: 219 | J83: 1279 | L83: =L71+L82 -> 164.03
A84: 1 | B84: 5 | C84: Завтрак | D84: гор.блюдо | E84: Картофельное пюре. Филе грудки, припущенное с овощами | F84: 270 | G84: 11.41 | H84: 19.04 | I84: 24.95 | J84: 325 | K84: 133; 439 | L84: 50.82
D85: гор. напиток | E85: Напиток "Витошка" витаминный | F85: 200 | G85: 0 | H85: 0 | I85: 16 | J85: 60 | K85: 287 | L85: 10.00
D86: хлеб чер. | E86: Хлеб ржано-пшеничный | F86: 20 | G86: 1.32 | H86: 0.24 | I86: 7.93 | J86: 40 | K86: 2 | L86: 1.30
D87: хлеб бел. | E87: Хлеб пшеничный | F87: 30 | G87: 2.43 | H87: 0.3 | I87: 14.64 | J87: 73 | K87: 1 | L87: 1.95
D88: кондитерское | E88: Печенье | F88: 30 | G88: 2.2 | H88: 3 | I88: 22.4 | J88: 122 | K88: 20 | L88: 7.02
D91: итого | F91: =SUM(F84:F90) -> 550 | G91: =SUM(G84:G90) -> 17 | H91: 23 | I91: 86 | J91: 620 | L91: =SUM(L84:L90) -> 71.09
A92: =A84 -> 1 | B92: =B84 -> 5 | C92: Обед | D92: закуска | E92: Икра морковная | F92: 60 | G92: 1.32 | H92: 4.6 | I92: 5.5 | J92: 80 | K92: 71 | L92: 5.10
D93: 1 блюдо | E93: Борщ из капусты с картофелем и сметаной | F93: 250 | G93: 2 | H93: 6 | I93: 12.8 | J93: 112 | K93: 82 | L93: 8.20
D94: 2 блюдо | E94: Котлета п/ф с томатным соусом | F94: 100 | G94: 10.3 | H94: 10 | I94: 9.5 | J94: 188 | K94: 1 | L94: 39.77
D95: гарнир | E95: Каша рисовая рассыпчатая | F95: 180 | G95: 4 | H95: 4 | I95: 49.14 | J95: 247 | K95: 171 | L95: 7.10
D96: сладкое | E96: Сок для детского питания | F96: 200 | G96: 1 | H96: 0.2 | I96: 22 | J96: 90 | K96: 45 | L96: 20.50
D97: хлеб бел. | E97: Хлеб пшеничный | F97: 30 | G97: 2.43 | H97: 0.3 | I97: 14.64 | J97: 73 | K97: 1 | L97: 1.95
D98: хлеб чер. | E98: Хлеб ржано-пшеничный | F98: 30 | G98: 1.98 | H98: 0.36 | I98: 11.89 | J98: 59.4 | K98: 2 | L98: 1.95
D101: итого | F101: =SUM(F92:F100) -> 850 | G101: =SUM(G92:G100) -> 23.12 | H101: 26 | I101: 125 | J101: 848 | L101: =SUM(L92:L100) -> 84.57
A102: =A84 -> 1 | B102: =B84 -> 5 | C102: Итого за день: | F102: =F91+F101 -> 1400 | G102: =G91+G101 -> 40 | H102: 48 | I102: 211 | J102: 1468 | L102: =L91+L101 -> 155.66
A103: 2 | B103: 1 | C103: Завтрак | D103: закуска | E103: Огурец в нарезке | F103: 60 | G103: 0.48 | H103: 0.06 | I103: 1.5 | J103: 8.4 | K103: 54 | L103: 13.05
D104: гор. блюдо | E104: Макаронные изделия отварные. Котлета п/ф с томатным соусом | F104: 260 | G104: 16.04 | H104: 14.53 | I104: 47.76 | J104: 405.73 | K104: 197; 1 | L104: 50.75
D105: гор. напиток | E105: Кофейный напиток | F105: 200 | G105: 2.91 | H105: 3.21 | I105: 14.73 | J105: 100.28 | K105: 275 | L105: 4.04
D106: хлеб бел. | E106: Хлеб пшеничный | F106: 30 | G106: 2.43 | H106: 0.3 | I106: 14.64 | J106: 72.6 | K106: 1 | L106: 1.95
D107: хлеб чер. | E107: Хлеб ржано-пшеничный | F107: 20 | G107: 1.32 | H107: 0.24 | I107: 7.93 | J107: 40 | K107: 2 | L107: 1.30
D110: итого | F110: =SUM(F103:F109) -> 570 | G110: =SUM(G103:G109) -> 23 | H110: 18 | I110: 87 | J110: 627 | L110: =SUM(L103:L109) -> 71.09
A111: =A103 -> 2 | B111: =B103 -> 1 | C111: Обед | D111: закуска | E111: Салат "Степной" | F111: 100 | G111: 1.67 | H111: 3.5 | I111: 6.67 | J111: 65 | K111: 25.06 | L111: 6.97
D112: 1 блюдо | E112: Суп картофельный с крупой | F112: 250 | G112: 2.2 | H112: 3.2 | I112: 17.8 | J112: 108.6 | K112: 57 | L112: 10.03
D113: 2 блюдо | E113: Куриное филе запеченое (грудка кур) | F113: 100 | G113: 19.3 | H113: 7.54 | I113: 0.06 | J113: 179.29 | K113: 320К | L113: 34.37
D114: гарнир | E114: Капуста тушенная | F114: 200 | G114: 4.5 | H114: 6.4 | I114: 18.4 | J114: 158 | K114: 148 | L114: 10.56
D115: сладкое | E115: Компот из смеси сухофруктов | F115: 200 | G115: 0.78 | H115: 0.06 | I115: 30.1 | J115: 125.2 | K115: 707 | L115: 8.20
D116: хлеб бел. | E116: Хлеб пшеничный | F116: 30 | G116: 2.43 | H116: 0.3 | I116: 14.64 | J116: 72.6 | K116: 1 | L116: 1.95
D117: хлеб чер. | E117: Хлеб ржано-пшеничный | F117: 30 | G117: 1.98 | H117: 0.36 | I117: 11.89 | J117: 59.4 | K117: 2 | L117: 1.95
D118: кондитерское | E118: Вафли | F118: 30 | G118: 1.32 | H118: 10.4 | I118: 21.26 | J118: 184 | K118: 823 | L118: 5.70
D120: итого | F120: =SUM(F111:F119) -> 940 | G120: =SUM(G111:G119) -> 34 | H120: 32 | I120: 121 | J120: 952 | L120: =SUM(L111:L119) -> 79.73
A121: =A103 -> 2 | B121: =B103 -> 1 | C121: Итого за день: | F121: =F110+F120 -> 1510 | G121: =G110+G120 -> 57 | H121: 50 | I121: 207 | J121: 1579 | L121: =L110+L120 -> 150.82
A122: 2 | B122: 2 | C122: Завтрак | D122: гор.блюдо | E122: Каша пшенная молочная жидкая | F122: 185 | G122: 7.5 | H122: 7.6 | I122: 32.6 | J122: 222 | K122: 208 | L122: 25.99
D123: гор. напиток | E123: Чай с лимоном | F123: 200 | G123: 0.14 | H123: 0.03 | I123: 10.22 | J123: 43 | K123: 273 | L123: 3.10
D124: хлеб чер. | E124: Хлеб ржано-пшеничный | F124: 20 | G124: 1.32 | H124: 0.24 | I124: 7.93 | J124: 40 | K124: 2 | L124: 1.30
D125: хлеб бел. | E125: Хлеб пшеничный, масло (порциями) | F125: 40 | G125: 3 | H125: 8 | I125: 15 | J125: 139 | K125: 1; 7 | L125: 9.70
D126: кисломолочное | E126: Йогурт детский питьевой | F126: 100 | G126: 4.9 | H126: 1.5 | I126: 14.3 | J126: 90 | K126: 1 | L126: 31.00
D129: итого | F129: =SUM(F122:F128) -> 545 | G129: =SUM(G122:G128) -> 16.86 | H129: =SUM(H122:H128) -> 17.37 | I129: =SUM(I122:I128) -> 80.05 | J129: =SUM(J122:J128) -> 534 | L129: =SUM(L122:L128) -> 71.09
A130: =A122 -> 2 | B130: =B122 -> 2 | C130: Обед | D130: закуска | E130: Салат "Мазайка" | F130: 60 | G130: 0.9 | H130: 4.5 | I130: 6 | J130: 68 | K130: 36 | L130: 5.90
D131: 1 блюдо | E131: Свекольник | F131: 250 | G131: 2.5 | H131: 4.2 | I131: 17.4 | J131: 131 | K131: 70 | L131: 9.51
D132: 2 блюдо | E132: Тефтели п/ф с томатным соусом | F132: 110 | G132: 10.5 | H132: 10.5 | I132: 9.7 | J132: 191 | K132: 2 | L132: 39.77
D133: гарнир | E133: Макаронные изделия отварные | F133: 160 | G133: 5.74 | H133: 4.23 | I133: 38.26 | J133: 217 | K133: 197 | L133: 11.23
D134: сладкое | E134: Компот из свежих плодов или ягод | F134: 200 | G134: 0.16 | H134: 0 | I134: 14.99 | J134: 61 | K134: 282 | L134: 9.42
D135: хлеб бел. | E135: Хлеб пшеничный | F135: 30 | G135: 2.43 | H135: 0.3 | I135: 14.64 | J135: 73 | K135: 1 | L135: 1.95
D136: хлеб чер. | E136: Хлеб ржано-пшеничный | F136: 30 | G136: 1.98 | H136: 0.36 | I136: 11.89 | J136: 59.4 | K136: 2 | L136: 1.95
D139: итого | F139: =SUM(F130:F138) -> 840 | G139: =SUM(G130:G138) -> 24 | H139: 24 | I139: 113 | J139: 800 | L139: =SUM(L130:L138) -> 79.73
A140: =A122 -> 2 | B140: =B122 -> 2 | C140: Итого за день: | F140: =F129+F139 -> 1385 | G140: =G129+G139 -> 41.07 | H140: 41.46 | I140: 192.93 | J140: 1333.51 | L140: =L129+L139 -> 150.82
A141: 2 | B141: 3 | C141: Завтрак | D141: закуска | E141: Винегрет овощной | F141: 60 | G141: 0.82 | H141: 3.71 | I141: 5.06 | J141: 56.8 | K141: 45 | L141: 6.59
D142: гор. блюдо | E142: Плов из птицы | F142: 200 | G142: 10.85 | H142: 22.69 | I142: 54.05 | J142: 462.03 | K142: 123 | L142: 51.25
D143: гор. напиток | E143: Напиток "Витошка" витаминный | F143: 200 | G143: 0 | H143: 0 | I143: 15.8 | J143: 60 | K143: 287 | L143: 10.00
D144: хлеб бел. | E144: Хлеб пшеничный | F144: 30 | G144: 2.43 | H144: 0.3 | I144: 14.64 | J144: 72.6 | K144: 1 | L144: 1.95
D145: хлеб чер. | E145: Хлеб ржано-пшеничный | F145: 20 | G145: 1.32 | H145: 0.24 | I145: 7.93 | J145: 40 | K145: 2 | L145: 1.30
D148: итого | F148: =SUM(F141:F147) -> 510 | G148: =SUM(G141:G147) -> 15.42 | H148: 27 | I148: 97 | J148: 691 | K148: 458 | L148: =SUM(L141:L147) -> 71.09
A149: =A141 -> 2 | B149: =B141 -> 3 | C149: Обед | D149: закуска | E149: Салат "Школьный" | F149: 80 | G149: 1.3 | H149: 5.9 | I149: 5.3 | J149: 80 | K149: 32 | L149: 6.71
D150: 1 блюдо | E150: Рассольник ленинградский | F150: 250 | G150: 2.68 | H150: 6.2 | I150: 13.8 | J150: 120.8 | K150: 56 | L150: 8.62
D151: 2 блюдо | E151: Котлета п/ф с томатным соусом | F151: 100 | G151: 10.3 | H151: 10.3 | I151: 9.5 | J151: 188 | K151: 1 | L151: 39.77
D152: гарнир | E152: Картофельное пюре | F152: 170 | G152: 4.31 | H152: 5.78 | I152: 19.44 | J152: 144.5 | K152: 133 | L152: 8.20
D153: сладкое | E153: Напиток яблочно-лимонный | F153: 200 | G153: 0.26 | H153: 0.21 | I153: 25 | J153: 105 | K153: 279 | L153: 5.70
D154: хлеб бел. | E154: Хлеб пшеничный | F154: 30 | G154: 2 | H154: 0 | I154: 15 | J154: 73 | K154: 1 | L154: 1.95
D155: хлеб чер. | E155: Хлеб ржано-пшеничный | F155: 30 | G155: 1.98 | H155: 0.36 | I155: 11.89 | J155: 59.4 | K155: 2 | L155: 1.95
D156: фрукты | E156: Яблоко | F156: 100 | G156: 0.4 | H156: 0.4 | I156: 10 | J156: 47 | K156: 588 | L156: 13.90
D159: итого | F159: =SUM(F149:F158) -> 960 | G159: =SUM(G149:G158) -> 24 | H159: 29 | I159: 109 | J159: 817 | L159: =SUM(L149:L158) -> 86.80
A160: =A141 -> 2 | B160: =B141 -> 3 | C160: Итого за день: | F160: =F148+F159 -> 1470 | G160: =G148+G159 -> 39 | H160: 56 | I160: 207 | J160: 1509 | L160: =L148+L159 -> 157.89
A161: 2 | B161: 4 | C161: Завтрак | D161: гор. блюдо | E161: Каша "Артек" молочная вязкая | F161: 185 | G161: 7.3 | H161: 7.4 | I161: 37.5 | J161: 251 | K161: 195 | L161: 25.44
D162: гор. напиток | E162: Какао на молоке | F162: 200 | G162: 9.2 | H162: 7.1 | I162: 11.03 | J162: 148.46 | K162: 266 | L162: 20.53
D163: хлеб бел. | E163: Хлеб пшеничный, сыр (порциями) | F163: 40 | G163: 5 | H163: 3 | I163: 17 | J163: 109 | K163: 1; 9 | L163: 9.90
D164: хлеб чер. | E164: Хлеб ржано-пшеничный | F164: 20 | G164: 1.32 | H164: 0.24 | I164: 7.93 | J164: 40 | K164: 2 | L164: 1.30
D165: фрукты | E165: Яблоко | F165: 100 | G165: 0.4 | H165: 0.4 | I165: 9.8 | J165: 47 | K165: 588 | L165: 13.90
D168: итого | F168: =SUM(F161:F167) -> 545 | G168: =SUM(G161:G167) -> 23.22 | H168: 18.14 | I168: 83.26 | J168: 595.46 | L168: =SUM(L161:L167) -> 71.07
A169: =A161 -> 2 | B169: =B161 -> 4 | C169: Обед | D169: закуска | E169: Салат из свежих помидоров и огурцов | F169: 60 | G169: 0.59 | H169: 3.69 | I169: 2.24 | J169: 45 | K169: 15 | L169: 7.52
D170: 1 блюдо | E170: Суп куллама по-деревенски (суп картофельный с лапшой и мясными фрикадельками или птицей) | F170: 275 | G170: 7.5 | H170: 5.4 | I170: 16.8 | J170: 146 | K170: 75 | L170: 12.36
D171: 2 блюдо | E171: Птица, тушенная в сметанном соусе | F171: 100 | G171: 7.34 | H171: 13 | I171: 9 | J171: 181 | K171: 594 | L171: 38.75
D172: гарнир | E172: Каша гречневая рассыпчатая | F172: 170 | G172: 10 | H172: 6 | I172: 45 | J172: 273 | K172: 330 | L172: 7.20
D173: сладкое | E173: Напиток "Витошка" витаминный | F173: 200 | G173: 0 | H173: 0 | I173: 15.8 | J173: 60 | K173: 287 | L173: 10.00
D174: хлеб бел. | E174: Хлеб пшеничный | F174: 30 | G174: 2.43 | H174: 0.3 | I174: 14.64 | J174: 73 | K174: 1 | L174: 1.95
D175: хлеб чер. | E175: Хлеб ржано-пшеничный | F175: 30 | G175: 1.98 | H175: 0.36 | I175: 11.89 | J175: 59.4 | K175: 2 | L175: 1.95
D178: итого | F178: =SUM(F169:F177) -> 865 | G178: =SUM(G169:G177) -> 30 | H178: 29 | I178: 115 | J178: 837 | L178: =SUM(L169:L177) -> 79.73
A179: =A161 -> 2 | B179: =B161 -> 4 | C179: Итого за день: | F179: =F168+F178 -> 1410 | G179: =G168+G178 -> 53 | H179: 47 | I179: 198 | J179: 1432 | L179: =L168+L178 -> 150.80
A180: 2 | B180: 5 | C180: Завтрак | D180: гор. блюдо | E180: Картофельное пюре. Рыба, запеченная с морковью | F180: 260 | G180: 15.31 | H180: 15.08 | I180: 22.44 | J180: 270 | K180: 133; 91 | L180: 47.34
D181: напиток | E181: Сок для детского питания | F181: 200 | G181: 1 | H181: 0.2 | I181: 22 | J181: 90 | K181: 45 | L181: 20.50
D182: хлеб бел. | E182: Хлеб пшеничный | F182: 30 | G182: 2.43 | H182: 0.3 | I182: 14.64 | J182: 73 | K182: 1 | L182: 1.95
D183: хлеб чер. | E183: Хлеб ржано-пшеничный | F183: 20 | G183: 1.32 | H183: 0.24 | I183: 7.93 | J183: 40 | K183: 2 | L183: 1.30
D186: итого | F186: =SUM(F180:F185) -> 510 | G186: =SUM(G180:G185) -> 20.06 | H186: 15.82 | I186: 67.01 | J186: 472.1 | L186: =SUM(L180:L185) -> 71.09
A187: =A180 -> 2 | B187: =B180 -> 5 | C187: Обед | D187: закуска | E187: Салат "Здоровье" | F187: 80 | G187: 1.6 | H187: 3.6 | I187: 5.7 | J187: 62 | K187: 20 | L187: 6.26
D188: 1 блюдо | E188: Щи из свежей капусты с картофелем и сметанной | F188: 250 | G188: 2.37 | H188: 6.92 | I188: 11.27 | J188: 117 | K188: 88 | L188: 8.80
D189: 2 блюдо | E189: Плов из птицы | F189: 200 | G189: 11 | H189: 22.69 | I189: 54.05 | J189: 462 | K189: 123 | L189: 45.55
D190: гарнир
D191: сладкое | E191: Компот из смеси сухофруктов | F191: 200 | G191: 0.78 | H191: 0.06 | I191: 30.1 | J191: 125 | K191: 707 | L191: 8.20
D192: хлеб бел. | E192: Хлеб пшеничный | F192: 30 | G192: 2.43 | H192: 0.3 | I192: 14.64 | J192: 73 | K192: 1 | L192: 1.95
D193: хлеб чер. | E193: Хлеб ржано-пшеничный | F193: 30 | G193: 1.98 | H193: 0.36 | I193: 11.89 | J193: 59.4 | K193: 2 | L193: 1.95
D194: кондитерское | E194: Печенье | F194: 30 | G194: 2.2 | H194: 3 | I194: 22.4 | J194: 122 | K194: 20 | L194: 7.02
D197: итого | F197: =SUM(F187:F195) -> 820 | G197: =SUM(G187:G195) -> 22 | H197: 37 | I197: 150 | J197: 1021 | L197: =SUM(L187:L195) -> 79.73
A198: =A180 -> 2 | B198: =B180 -> 5 | C198: Итого за день: | F198: =F186+F197 -> 1330 | G198: =G186+G197 -> 42.42 | H198: 52.75 | I198: 217.06 | J198: 1492.62 | L198: =L186+L197 -> 150.82
